[Event "Early-Titled-Tuesday-Blitz-May-14-2024"]
[Site "Chess.com"]
[Date "2024.05.14"]
[Round "10"]
[White "TheAlienParty"]
[Black "LamaChampetre"]
[Result "1-0"]
[WhiteElo "2426"]
[BlackElo "2216"]
[TimeControl "180+1"]
[EndTime "9:59:45 PDT"]
[Termination "TheAlienParty won by resignation"]

1. c4 {[%clk 0:02:58]} 1... g6 {[%clk 0:02:59.1]} 2. d4 {[%clk 0:02:57.4]} 2...
Nf6 {[%clk 0:02:58.7]} 3. Nc3 {[%clk 0:02:56.9]} 3... d5 {[%clk 0:02:59.3]} 4.
cxd5 {[%clk 0:02:50.4]} 4... Nxd5 {[%clk 0:03:00.2]} 5. g3 {[%clk 0:02:50.6]}
5... Bg7 {[%clk 0:02:45.3]} 6. Bg2 {[%clk 0:02:48.5]} 6... Nb6 {[%clk
0:02:37.7]} 7. Nf3 {[%clk 0:02:46]} 7... Nc6 {[%clk 0:02:34.7]} 8. e3 {[%clk
0:02:40.8]} 8... Bg4 {[%clk 0:02:29.9]} 9. h3 {[%clk 0:02:40.1]} 9... Bxf3
{[%clk 0:02:26.5]} 10. Bxf3 {[%clk 0:02:39.8]} 10... e5 {[%clk 0:02:26.1]} 11.
d5 {[%clk 0:02:39.1]} 11... Ne7 {[%clk 0:02:23.7]} 12. O-O {[%clk 0:02:35.7]}
12... O-O {[%clk 0:02:22.6]} 13. Bg2 {[%clk 0:02:34.6]} 13... f5 {[%clk
0:02:21.4]} 14. Qb3 {[%clk 0:02:33.5]} 14... Rf7 {[%clk 0:02:18.4]} 15. Rd1
{[%clk 0:02:32.9]} 15... e4 {[%clk 0:02:17.7]} 16. a4 {[%clk 0:02:29]} 16...
Bxc3 {[%clk 0:02:12.6]} 17. bxc3 {[%clk 0:02:28.8]} 17... a5 {[%clk 0:01:58.5]}
18. c4 {[%clk 0:02:28.5]} 18... Nd7 {[%clk 0:01:54.3]} 19. Bb2 {[%clk
0:02:27.9]} 19... Nc8 {[%clk 0:01:46.2]} 20. Qc3 {[%clk 0:02:16.2]} 20... Qf6
{[%clk 0:01:43.4]} 21. Qb3 {[%clk 0:02:07.9]} 21... Qb6 {[%clk 0:01:40]} 22. Qc3
{[%clk 0:02:01.5]} 22... Qf6 {[%clk 0:01:39.1]} 23. Qc2 {[%clk 0:02:00.7]} 23...
Qd6 {[%clk 0:01:35]} 24. Ba3 {[%clk 0:01:57.6]} 24... Nc5 {[%clk 0:01:16.6]} 25.
Rab1 {[%clk 0:01:57.2]} 25... b6 {[%clk 0:01:15.5]} 26. Rb5 {[%clk 0:01:55.4]}
26... Na7 {[%clk 0:01:12.1]} 27. Bxc5 {[%clk 0:01:51.1]} 27... bxc5 {[%clk
0:01:11.4]} 28. Rxa5 {[%clk 0:01:51]} 28... Qb6 {[%clk 0:01:06]} 29. Qd2 {[%clk
0:01:37.8]} 29... Rb8 {[%clk 0:01:04.9]} 30. Kh2 {[%clk 0:01:24]} 30... Rf6
{[%clk 0:01:02]} 31. f3 {[%clk 0:01:16.3]} 31... exf3 {[%clk 0:00:54.6]} 32.
Bxf3 {[%clk 0:01:16.1]} 32... Rd6 {[%clk 0:00:54.9]} 33. Kg2 {[%clk 0:01:14.1]}
33... Rb7 {[%clk 0:00:44.9]} 34. g4 {[%clk 0:01:11.4]} 34... Rf6 {[%clk
0:00:27.4]} 35. g5 {[%clk 0:01:07.7]} 35... Rf8 {[%clk 0:00:23.8]} 36. Qc3
{[%clk 0:01:03]} 36... Qd6 {[%clk 0:00:22.4]} 37. h4 {[%clk 0:00:54.6]} 37...
Re8 {[%clk 0:00:20]} 38. Rd2 {[%clk 0:00:48.9]} 38... Nc8 {[%clk 0:00:17.7]} 39.
Ra8 {[%clk 0:00:45.2]} 39... Ra7 {[%clk 0:00:15.8]} 40. Rxa7 {[%clk 0:00:37.6]}
40... Nxa7 {[%clk 0:00:16.7]} 41. Re2 {[%clk 0:00:35.5]} 41... Nc8 {[%clk
0:00:16.4]} 42. e4 {[%clk 0:00:34.9]} 42... Qf4 {[%clk 0:00:11.9]} 43. exf5
{[%clk 0:00:31.5]} 43... Rxe2+ {[%clk 0:00:12.8]} 44. Bxe2 {[%clk 0:00:31.2]}
44... Qxh4 {[%clk 0:00:12.6]} 45. Kf1 {[%clk 0:00:20.2]} 45... Qf4+ {[%clk
0:00:11.2]} 46. Ke1 {[%clk 0:00:19.8]} 46... Qxg5 {[%clk 0:00:09.6]} 47. fxg6
{[%clk 0:00:19.4]} 47... hxg6 {[%clk 0:00:09]} 48. Qa5 {[%clk 0:00:19.1]} 48...
Qg1+ {[%clk 0:00:07.9]} 49. Kd2 {[%clk 0:00:19]} 49... Qd4+ {[%clk 0:00:07.9]}
50. Kc2 {[%clk 0:00:18.8]} 50... Nb6 {[%clk 0:00:06.9]} 51. Qb5 {[%clk 0:00:18]}
51... Qe3 {[%clk 0:00:04.8]} 52. Bd3 {[%clk 0:00:17.9]} 52... Qf2+ {[%clk
0:00:04.8]} 53. Kb3 {[%clk 0:00:18]} 53... Qg1 {[%clk 0:00:02.3]} 54. Qe8+
{[%clk 0:00:17.6]} 54... Kg7 {[%clk 0:00:02.1]} 55. Qe7+ {[%clk 0:00:17.6]}
55... Kh6 {[%clk 0:00:02.3]} 56. a5 {[%clk 0:00:17]} 56... Qd1+ {[%clk
0:00:00.2]} 57. Bc2 {[%clk 0:00:16.6]} 57... Qd2 {[%clk 0:00:00.6]} 58. Qh4+
{[%clk 0:00:10.7]} 58... Kg7 {[%clk 0:00:00.7]} 59. Qe7+ {[%clk 0:00:10]} 59...
Kh6 {[%clk 0:00:00.6]} 60. axb6 {[%clk 0:00:10.3]} 60... Qb4+ {[%clk 0:00:01.5]}
61. Ka2 {[%clk 0:00:10.2]} 61... cxb6 {[%clk 0:00:01.7]} 62. Qe3+ {[%clk
0:00:09.2]} 62... Kg7 {[%clk 0:00:01.5]} 63. Qd3 {[%clk 0:00:09.6]} 63... Qa5+
{[%clk 0:00:02.3]} 64. Kb1 {[%clk 0:00:09.7]} 64... Qe1+ {[%clk 0:00:02.6]} 65.
Kb2 {[%clk 0:00:09.7]} 65... Qb4+ {[%clk 0:00:02.6]} 66. Kc1 {[%clk 0:00:10]}
66... Qe1+ {[%clk 0:00:02.7]} 67. Bd1 {[%clk 0:00:10.3]} 67... Qb4 {[%clk
0:00:02.3]} 68. Qe4 {[%clk 0:00:07.5]} 68... Qc3+ {[%clk 0:00:02]} 69. Bc2
{[%clk 0:00:07.7]} 69... Qa1+ {[%clk 0:00:01.5]} 70. Kd2 {[%clk 0:00:08.1]}
70... Qa5+ {[%clk 0:00:01.7]} 71. Ke2 {[%clk 0:00:08]} 71... Qc3 {[%clk
0:00:01.7]} 72. Qxg6+ {[%clk 0:00:08.2]} 72... Kf8 {[%clk 0:00:02.2]} 73. Qf5+
{[%clk 0:00:08.2]} 73... Ke7 {[%clk 0:00:02.5]} 74. Qe6+ {[%clk 0:00:08.5]}
74... Kf8 {[%clk 0:00:02.9]} 75. Bd3 {[%clk 0:00:08.8]} 75... Qb2+ {[%clk
0:00:02.9]} 76. Kf3 {[%clk 0:00:09.1]} 76... Qd4 {[%clk 0:00:03.4]} 77. Qf5+
{[%clk 0:00:08.7]} 77... Ke7 {[%clk 0:00:03.3]} 78. Qe6+ {[%clk 0:00:09]} 78...
Kf8 {[%clk 0:00:03.7]} 79. Qe4 {[%clk 0:00:09.4]} 79... Qc3 {[%clk 0:00:01.4]}
80. d6 {[%clk 0:00:08.6]} 80... Qc1 {[%clk 0:00:00.5]} 81. d7 {[%clk 0:00:08.2]}
81... Qh1+ {[%clk 0:00:00.7]} 82. Kf4 {[%clk 0:00:07.5]} 82... Qh4+ {[%clk
0:00:00.7]} 83. Ke5 {[%clk 0:00:07.6]} 83... Qe7+ {[%clk 0:00:00.9]} 84. Kf4
{[%clk 0:00:07.7]} 84... Qxd7 {[%clk 0:00:01.8]} 85. Qf5+ {[%clk 0:00:08]} 85...
Qxf5+ {[%clk 0:00:02]} 86. Kxf5 {[%clk 0:00:08.5]} 86... Ke7 {[%clk 0:00:02.9]}
87. Ke5 {[%clk 0:00:09.2]} 87... Kd7 {[%clk 0:00:03.2]} 88. Kd5 {[%clk
0:00:10.1]} 88... Kc7 {[%clk 0:00:04.1]} 89. Bc2 {[%clk 0:00:10.2]} 89... Kb7
{[%clk 0:00:04.5]} 90. Ba4 {[%clk 0:00:10.8]} 90... Ka6 {[%clk 0:00:05.4]} 91.
Bb5+ {[%clk 0:00:11.5]} 91... Ka5 {[%clk 0:00:06.3]} 92. Kc6 {[%clk 0:00:11.5]}
92... Kb4 {[%clk 0:00:07.1]} 93. Kxb6 {[%clk 0:00:12]} 93... Kc3 {[%clk
0:00:07.7]} 94. Kxc5 {[%clk 0:00:12.5]} 1-0

[Event "Early-Titled-Tuesday-Blitz-May-14-2024"]
[Site "Chess.com"]
[Date "2024.05.14"]
[Round "10"]
[White "Kors67"]
[Black "BelyakovBogdan"]
[Result "1/2-1/2"]
[WhiteElo "2306"]
[BlackElo "2598"]
[TimeControl "180+1"]
[EndTime "9:59:48 PDT"]
[Termination "Game drawn - insufficient material"]

1. e4 {[%clk 0:03:00.9]} 1... e5 {[%clk 0:02:56.1]} 2. Nf3 {[%clk 0:03:00.3]}
2... Nc6 {[%clk 0:02:55.4]} 3. Bc4 {[%clk 0:03:00.5]} 3... Bc5 {[%clk
0:02:54.3]} 4. c3 {[%clk 0:03:00.8]} 4... Nf6 {[%clk 0:02:52.9]} 5. d4 {[%clk
0:03:01.2]} 5... exd4 {[%clk 0:02:53.8]} 6. cxd4 {[%clk 0:03:01.6]} 6... Bb4+
{[%clk 0:02:53.4]} 7. Bd2 {[%clk 0:03:02.2]} 7... Bxd2+ {[%clk 0:02:53.5]} 8.
Nbxd2 {[%clk 0:03:02.8]} 8... d5 {[%clk 0:02:54.1]} 9. exd5 {[%clk 0:03:02.9]}
9... Nxd5 {[%clk 0:02:55]} 10. O-O {[%clk 0:03:02.9]} 10... O-O {[%clk
0:02:54.8]} 11. Ne5 {[%clk 0:03:03.2]} 11... Nxd4 {[%clk 0:02:51.7]} 12. Ne4
{[%clk 0:03:03.3]} 12... c5 {[%clk 0:02:26.4]} 13. Nxc5 {[%clk 0:03:02.8]} 13...
Nf6 {[%clk 0:02:14.7]} 14. Nb3 {[%clk 0:02:27.1]} 14... Ne6 {[%clk 0:01:45.7]}
15. Qf3 {[%clk 0:02:14.5]} 15... Qc7 {[%clk 0:01:39]} 16. Rfe1 {[%clk
0:02:05.3]} 16... Ng5 {[%clk 0:01:35.7]} 17. Qc3 {[%clk 0:01:24.8]} 17... Be6
{[%clk 0:01:32.1]} 18. Bxe6 {[%clk 0:01:20.2]} 18... Nxe6 {[%clk 0:01:33]} 19.
Qxc7 {[%clk 0:01:12.4]} 19... Nxc7 {[%clk 0:01:33.9]} 20. Rac1 {[%clk
0:01:07.7]} 20... Ncd5 {[%clk 0:01:32.1]} 21. Nc5 {[%clk 0:01:03.7]} 21... b6
{[%clk 0:01:30.5]} 22. Na6 {[%clk 0:00:58.8]} 22... Rac8 {[%clk 0:01:27]} 23.
Nc6 {[%clk 0:00:57.6]} 23... g6 {[%clk 0:01:16]} 24. Nab4 {[%clk 0:00:51]} 24...
Nxb4 {[%clk 0:01:11.6]} 25. Ne7+ {[%clk 0:00:49.7]} 25... Kg7 {[%clk 0:01:10.8]}
26. Rxc8 {[%clk 0:00:48.8]} 26... Nd3 {[%clk 0:01:02.6]} 27. Re2 {[%clk
0:00:41.7]} 27... a5 {[%clk 0:00:54.7]} 28. Rxf8 {[%clk 0:00:39.4]} 28... Kxf8
{[%clk 0:00:55.6]} 29. Nc8 {[%clk 0:00:39.6]} 29... b5 {[%clk 0:00:45.8]} 30.
Rd2 {[%clk 0:00:36.1]} 30... Nc1 {[%clk 0:00:42.5]} 31. b3 {[%clk 0:00:24]}
31... Ne4 {[%clk 0:00:41.1]} 32. Rc2 {[%clk 0:00:23.2]} 32... Nd3 {[%clk
0:00:39.4]} 33. f3 {[%clk 0:00:20.1]} 33... Nb4 {[%clk 0:00:36]} 34. Rc7 {[%clk
0:00:14.6]} 34... Nd5 {[%clk 0:00:21.2]} 35. Ra7 {[%clk 0:00:13.8]} 35... Nec3
{[%clk 0:00:17.7]} 36. Nd6 {[%clk 0:00:13.9]} 36... Nxa2 {[%clk 0:00:15.7]} 37.
Rxf7+ {[%clk 0:00:12.8]} 37... Kg8 {[%clk 0:00:16.2]} 38. Ra7 {[%clk 0:00:12.8]}
38... a4 {[%clk 0:00:14.8]} 39. bxa4 {[%clk 0:00:10.9]} 39... bxa4 {[%clk
0:00:15.7]} 40. Rxa4 {[%clk 0:00:10.5]} 40... Nac3 {[%clk 0:00:16.6]} 41. Ra7
{[%clk 0:00:10.9]} 41... Ne2+ {[%clk 0:00:15.1]} 42. Kf2 {[%clk 0:00:10.9]}
42... Nef4 {[%clk 0:00:16]} 43. g3 {[%clk 0:00:10.6]} 43... Nd3+ {[%clk
0:00:16]} 44. Ke2 {[%clk 0:00:10.4]} 44... Ne5 {[%clk 0:00:15.9]} 45. Ra5 {[%clk
0:00:10]} 45... Nc3+ {[%clk 0:00:12.7]} 46. Kd2 {[%clk 0:00:08.9]} 46... Nb1+
{[%clk 0:00:09]} 47. Kc2 {[%clk 0:00:07.9]} 47... Nxf3 {[%clk 0:00:09.4]} 48.
Kxb1 {[%clk 0:00:07.4]} 48... Nxh2 {[%clk 0:00:10.3]} 49. Ne4 {[%clk 0:00:07.2]}
49... h6 {[%clk 0:00:05.7]} 50. Kc2 {[%clk 0:00:07.6]} 50... Kf7 {[%clk
0:00:05.8]} 51. Kd3 {[%clk 0:00:08.1]} 51... Ke6 {[%clk 0:00:06.3]} 52. Kd4
{[%clk 0:00:08.2]} 52... Ng4 {[%clk 0:00:06.2]} 53. Ra6+ {[%clk 0:00:07.5]}
53... Kf5 {[%clk 0:00:04.4]} 54. Ra8 {[%clk 0:00:07.2]} 54... g5 {[%clk
0:00:04]} 55. Rf8+ {[%clk 0:00:07]} 55... Kg6 {[%clk 0:00:04.6]} 56. Nd6 {[%clk
0:00:06.4]} 56... Nf6 {[%clk 0:00:03.3]} 57. Ke3 {[%clk 0:00:05]} 57... h5
{[%clk 0:00:03]} 58. Rd8 {[%clk 0:00:04.8]} 58... Nd5+ {[%clk 0:00:02.9]} 59.
Kf3 {[%clk 0:00:04.4]} 59... Ne7 {[%clk 0:00:02.9]} 60. Ne4 {[%clk 0:00:04.2]}
60... Nf5 {[%clk 0:00:01.6]} 61. Ra8 {[%clk 0:00:03.4]} 61... Nd4+ {[%clk
0:00:00.7]} 62. Kf2 {[%clk 0:00:04]} 62... Ne6 {[%clk 0:00:01.4]} 63. Ra6 {[%clk
0:00:03.5]} 63... Kf5 {[%clk 0:00:02.3]} 64. Nd6+ {[%clk 0:00:03.8]} 64... Ke5
{[%clk 0:00:02.4]} 65. Nc4+ {[%clk 0:00:03.7]} 65... Kf5 {[%clk 0:00:03.3]} 66.
Ne3+ {[%clk 0:00:03.7]} 66... Ke5 {[%clk 0:00:02.9]} 67. g4 {[%clk 0:00:04.1]}
67... hxg4 {[%clk 0:00:03.2]} 68. Nxg4+ {[%clk 0:00:04.2]} 68... Kf5 {[%clk
0:00:04.1]} 69. Nh6+ {[%clk 0:00:04.3]} 69... Ke5 {[%clk 0:00:04.4]} 70. Ke3
{[%clk 0:00:04.9]} 70... Nf4 {[%clk 0:00:04.8]} 71. Ng4+ {[%clk 0:00:05.1]}
71... Kf5 {[%clk 0:00:05.3]} 72. Nh6+ {[%clk 0:00:05.3]} 72... Ke5 {[%clk
0:00:05.7]} 73. Kf3 {[%clk 0:00:05.8]} 73... Nd3 {[%clk 0:00:05.6]} 74. Kg4
{[%clk 0:00:06]} 74... Nf2+ {[%clk 0:00:06.1]} 75. Kxg5 {[%clk 0:00:06.2]} 75...
Ne4+ {[%clk 0:00:07]} 76. Kg6 {[%clk 0:00:06.7]} 76... Nc5 {[%clk 0:00:07.9]}
77. Ra5 {[%clk 0:00:05.8]} 77... Kd4 {[%clk 0:00:08.3]} 78. Nf5+ {[%clk
0:00:06.4]} 78... Kc4 {[%clk 0:00:08.6]} 79. Ra8 {[%clk 0:00:06.2]} 79... Nd3
{[%clk 0:00:08]} 80. Rc8+ {[%clk 0:00:06.5]} 80... Kd5 {[%clk 0:00:08.4]} 81.
Ng3 {[%clk 0:00:06]} 81... Ne5+ {[%clk 0:00:08.2]} 82. Kf5 {[%clk 0:00:06]}
82... Nc6 {[%clk 0:00:08.5]} 83. Rc7 {[%clk 0:00:05.7]} 83... Kd6 {[%clk
0:00:08.7]} 84. Rh7 {[%clk 0:00:06.1]} 84... Ne7+ {[%clk 0:00:08.9]} 85. Kf4
{[%clk 0:00:05.5]} 85... Nd5+ {[%clk 0:00:09.1]} 86. Ke4 {[%clk 0:00:05.1]}
86... Nf6+ {[%clk 0:00:09.4]} 87. Kf5 {[%clk 0:00:05.6]} 87... Nxh7 {[%clk
0:00:10.3]} 1/2-1/2

[Event "Early-Titled-Tuesday-Blitz-May-14-2024"]
[Site "Chess.com"]
[Date "2024.05.14"]
[Round "10"]
[White "Szparu"]
[Black "Oleksandr_Bortnyk"]
[Result "0-1"]
[WhiteElo "2856"]
[BlackElo "3042"]
[TimeControl "180+1"]
[EndTime "10:00:12 PDT"]
[Termination "Oleksandr_Bortnyk won on time"]

1. e4 {[%clk 0:03:00.9]} 1... Nf6 {[%clk 0:02:58.9]} 2. e5 {[%clk 0:03:00.5]}
2... Nd5 {[%clk 0:02:59]} 3. d4 {[%clk 0:03:01]} 3... d6 {[%clk 0:02:59.6]} 4.
Nf3 {[%clk 0:03:01.4]} 4... dxe5 {[%clk 0:03:00.2]} 5. Nxe5 {[%clk 0:03:02.1]}
5... c6 {[%clk 0:03:00.8]} 6. Be2 {[%clk 0:03:01.9]} 6... Bf5 {[%clk 0:03:00.5]}
7. O-O {[%clk 0:03:01.2]} 7... Nd7 {[%clk 0:03:00.5]} 8. Nf3 {[%clk 0:02:59.8]}
8... e6 {[%clk 0:03:00.9]} 9. c4 {[%clk 0:02:59]} 9... N5f6 {[%clk 0:03:01.3]}
10. Nc3 {[%clk 0:02:58.9]} 10... Bd6 {[%clk 0:03:01.3]} 11. Nh4 {[%clk
0:02:58.8]} 11... Bg6 {[%clk 0:02:59.6]} 12. g3 {[%clk 0:02:54.2]} 12... Ne4
{[%clk 0:02:54.9]} 13. Nxg6 {[%clk 0:02:45.7]} 13... Nxc3 {[%clk 0:02:55.2]} 14.
bxc3 {[%clk 0:02:46.6]} 14... hxg6 {[%clk 0:02:55.9]} 15. Bf3 {[%clk 0:02:46.5]}
15... O-O {[%clk 0:02:54.7]} 16. h4 {[%clk 0:02:45.4]} 16... Qa5 {[%clk
0:02:53.3]} 17. Qb3 {[%clk 0:02:41.2]} 17... Rab8 {[%clk 0:02:51]} 18. Bg5
{[%clk 0:02:33.4]} 18... e5 {[%clk 0:02:49.9]} 19. Rad1 {[%clk 0:02:30.9]} 19...
Rfe8 {[%clk 0:02:47.6]} 20. Rfe1 {[%clk 0:02:30.2]} 20... Bf8 {[%clk 0:02:35.6]}
21. c5 {[%clk 0:02:21]} 21... Qc7 {[%clk 0:02:13.5]} 22. Kg2 {[%clk 0:02:11]}
22... b6 {[%clk 0:02:12.6]} 23. cxb6 {[%clk 0:02:08.9]} 23... Nxb6 {[%clk
0:01:52]} 24. dxe5 {[%clk 0:01:16.9]} 24... Nd7 {[%clk 0:01:51.6]} 25. Qa4
{[%clk 0:01:08.9]} 25... Nxe5 {[%clk 0:01:50.9]} 26. Bf4 {[%clk 0:01:08.8]}
26... Rb2 {[%clk 0:01:41.6]} 27. Qxc6 {[%clk 0:00:50.6]} 27... Nxc6 {[%clk
0:00:47.8]} 28. Bxc7 {[%clk 0:00:50.6]} 28... Rc8 {[%clk 0:00:48.7]} 29. Rd7
{[%clk 0:00:45.3]} 29... Rb7 {[%clk 0:00:45.7]} 30. Bxc6 {[%clk 0:00:27.7]}
30... Rbxc7 {[%clk 0:00:45.9]} 31. Rxc7 {[%clk 0:00:28.4]} 31... Rxc7 {[%clk
0:00:46.8]} 32. Bd5 {[%clk 0:00:28.9]} 32... Rxc3 {[%clk 0:00:47.2]} 33. Rb1
{[%clk 0:00:28.5]} 33... Rc5 {[%clk 0:00:44.3]} 34. Bb3 {[%clk 0:00:26.2]} 34...
Be7 {[%clk 0:00:43.2]} 35. Rd1 {[%clk 0:00:26.3]} 35... Rc7 {[%clk 0:00:43]} 36.
Rd5 {[%clk 0:00:25.3]} 36... Bc5 {[%clk 0:00:41.7]} 37. Rd8+ {[%clk 0:00:23.3]}
37... Kh7 {[%clk 0:00:40.2]} 38. Rd5 {[%clk 0:00:23.1]} 38... Bb6 {[%clk
0:00:39.5]} 39. Rd3 {[%clk 0:00:18.4]} 39... Re7 {[%clk 0:00:36.5]} 40. Rf3
{[%clk 0:00:18.2]} 40... f5 {[%clk 0:00:36.1]} 41. Kf1 {[%clk 0:00:17.6]} 41...
Kh6 {[%clk 0:00:35.8]} 42. Rd3 {[%clk 0:00:17.1]} 42... g5 {[%clk 0:00:34.7]}
43. Rd6+ {[%clk 0:00:16.7]} 43... g6 {[%clk 0:00:34.8]} 44. hxg5+ {[%clk
0:00:16.3]} 44... Kxg5 {[%clk 0:00:35.7]} 45. f4+ {[%clk 0:00:13.1]} 45... Kh6
{[%clk 0:00:19.1]} 46. Bc2 {[%clk 0:00:12.9]} 46... Re3 {[%clk 0:00:14.1]} 47.
Bxf5 {[%clk 0:00:12.3]} 47... Rxg3 {[%clk 0:00:14.4]} 48. Be4 {[%clk 0:00:08.9]}
48... Kh5 {[%clk 0:00:11.9]} 49. Bd3 {[%clk 0:00:02.5]} 49... Rf3+ {[%clk
0:00:10.4]} 50. Ke2 {[%clk 0:00:02.5]} 50... Rxf4 {[%clk 0:00:11.3]} 51. Bxg6+
{[%clk 0:00:02.8]} 51... Kg5 {[%clk 0:00:11.3]} 52. Bb1 {[%clk 0:00:02.6]} 52...
Rf2+ {[%clk 0:00:10]} 53. Kd1 {[%clk 0:00:03.1]} 53... Rb2 {[%clk 0:00:10.9]}
54. Bc2 {[%clk 0:00:02.4]} 54... Rxa2 {[%clk 0:00:11.1]} 55. Rd5+ {[%clk
0:00:03]} 55... Kf4 {[%clk 0:00:10.9]} 56. Rd7 {[%clk 0:00:02.9]} 56... Ke3
{[%clk 0:00:09.1]} 57. Kc1 {[%clk 0:00:03.1]} 57... Bd4 {[%clk 0:00:05.5]} 58.
Re7+ {[%clk 0:00:03.6]} 58... Kf3 {[%clk 0:00:05.6]} 59. Rf7+ {[%clk 0:00:03.6]}
59... Kg3 {[%clk 0:00:05.2]} 60. Bb3 {[%clk 0:00:03.6]} 60... Ra5 {[%clk
0:00:03.5]} 61. Kc2 {[%clk 0:00:03.2]} 61... Bb6 {[%clk 0:00:02.7]} 62. Kd3
{[%clk 0:00:03.1]} 62... Re5 {[%clk 0:00:02.7]} 63. Rg7+ {[%clk 0:00:02.7]}
63... Kf4 {[%clk 0:00:02.7]} 64. Rf7+ {[%clk 0:00:03.2]} 64... Kg5 {[%clk
0:00:03.4]} 65. Rg7+ {[%clk 0:00:03.6]} 65... Kf6 {[%clk 0:00:04]} 66. Rf7+
{[%clk 0:00:04.3]} 66... Kg6 {[%clk 0:00:04.7]} 67. Rf3 {[%clk 0:00:04.8]} 67...
Rc5 {[%clk 0:00:04.7]} 68. Rg3+ {[%clk 0:00:03.9]} 68... Kf5 {[%clk 0:00:05]}
69. Re3 {[%clk 0:00:03.3]} 69... Rb5 {[%clk 0:00:04.6]} 70. Bc4 {[%clk
0:00:02.5]} 70... Ra5 {[%clk 0:00:04.7]} 71. Rf3+ {[%clk 0:00:02.7]} 71... Kg4
{[%clk 0:00:05.1]} 72. Rf1 {[%clk 0:00:03.1]} 72... Re5 {[%clk 0:00:04.7]} 73.
Kc3 {[%clk 0:00:03.2]} 73... a5 {[%clk 0:00:04.4]} 74. Kb3 {[%clk 0:00:03.6]}
74... Bc5 {[%clk 0:00:03.3]} 75. Ra1 {[%clk 0:00:03.2]} 75... Bb4 {[%clk
0:00:03.7]} 76. Rd1 {[%clk 0:00:03.2]} 76... Kf4 {[%clk 0:00:03.6]} 77. Rd5
{[%clk 0:00:03.3]} 77... Re3+ {[%clk 0:00:03.7]} 78. Rd3 {[%clk 0:00:03.8]}
78... Re7 {[%clk 0:00:04.6]} 79. Rd4+ {[%clk 0:00:04.2]} 79... Ke3 {[%clk
0:00:04.8]} 80. Rd3+ {[%clk 0:00:04.6]} 80... Ke4 {[%clk 0:00:05.4]} 81. Rd1
{[%clk 0:00:05]} 81... Rc7 {[%clk 0:00:05.8]} 82. Rd8 {[%clk 0:00:03.2]} 82...
Be7 {[%clk 0:00:04.9]} 83. Re8 {[%clk 0:00:03.6]} 83... Kd4 {[%clk 0:00:04.7]}
84. Bb5 {[%clk 0:00:04.1]} 84... Rb7 {[%clk 0:00:04.4]} 85. Ka4 {[%clk
0:00:04.2]} 85... Bb4 {[%clk 0:00:04.8]} 86. Rd8+ {[%clk 0:00:04.4]} 86... Kc3
{[%clk 0:00:04.5]} 87. Rd3+ {[%clk 0:00:03.8]} 87... Kb2 {[%clk 0:00:04.5]} 88.
Rb3+ {[%clk 0:00:03.8]} 88... Kc2 {[%clk 0:00:05.2]} 89. Rh3 {[%clk 0:00:03.9]}
89... Re7 {[%clk 0:00:04.5]} 90. Bc4 {[%clk 0:00:03.7]} 90... Rc7 {[%clk
0:00:03.6]} 91. Bb3+ {[%clk 0:00:03.9]} 91... Kb2 {[%clk 0:00:03.1]} 92. Rh2+
{[%clk 0:00:04.5]} 92... Kc1 {[%clk 0:00:03.1]} 93. Rh1+ {[%clk 0:00:04.3]}
93... Kd2 {[%clk 0:00:03.8]} 94. Rh2+ {[%clk 0:00:04.9]} 94... Kd3 {[%clk
0:00:04.4]} 95. Rh3+ {[%clk 0:00:04.9]} 95... Kd4 {[%clk 0:00:05]} 96. Rh4+
{[%clk 0:00:05.5]} 96... Ke3 {[%clk 0:00:05.7]} 97. Rh3+ {[%clk 0:00:06]} 97...
Kf4 {[%clk 0:00:06.5]} 98. Rh4+ {[%clk 0:00:06.5]} 98... Kg5 {[%clk 0:00:07.2]}
99. Rh2 {[%clk 0:00:06.8]} 99... Rb7 {[%clk 0:00:07.1]} 100. Rc2 {[%clk
0:00:05.8]} 100... Be1 {[%clk 0:00:07.1]} 101. Re2 {[%clk 0:00:05.1]} 101...
Rb4+ {[%clk 0:00:04.8]} 102. Ka3 {[%clk 0:00:05.2]} 102... Bc3 {[%clk
0:00:04.9]} 103. Re5+ {[%clk 0:00:05.2]} 103... Bxe5 {[%clk 0:00:05.2]} 0-1